fUST/lending_fUST_20240801
["ID","MTS","AMOUNT","RATE_DAILY","PERIOD"]
[333812597,1722526239787,-504.31399478,0.00013698,2]
[333812598,1722526239798,-420.0,0.00013858,2]
[333812599,1722526239808,-839.0,0.0001396,2]
[333812600,1722526239819,-839.0,0.0001396,2]
[333812601,1722526239828,-839.0,0.0001396,2]
[333812602,1722526239838,-839.0,0.0001396,2]
[333812603,1722526239847,-839.04,0.0001396,2]
[333812604,1722526239857,-167.808466,0.00013972,2]
[333812605,1722526239867,-506.33901798,0.00013972,2]
[333812606,1722526239876,-500.0,0.00013972,2]
[333812607,1722526239886,-579.53360955,0.00013972,2]
[333812608,1722526239896,-630.64,0.00013972,2]
[333812609,1722526239907,-500.0,0.00013972,2]
[333812610,1722526239917,-500.0,0.00013972,2]
[333812611,1722526239928,-505.31830887,0.00013972,2]
[333812612,1722526239938,-500.0,0.00013972,2]
[333812613,1722526239949,-500.0,0.00013972,2]
[333812614,1722526239959,-500.0,0.00013972,2]
[333812615,1722526239972,-507.72,0.00013972,2]
[333812616,1722526239982,-500.0,0.00013972,2]
[333812617,1722526239992,-958.75,0.00013972,2]
[333812618,1722526240002,-2970.46,0.00013972,2]
[333812619,1722526240012,-500.0,0.00013972,2]
[333812620,1722526240023,-500.0,0.00013972,2]
[333812621,1722526240033,-601.25,0.00013972,2]
[333812622,1722526240043,-500.0,0.00013972,2]
[333812623,1722526240053,-506.59107016,0.00013972,2]
[333812624,1722526240065,-537.12,0.00013972,2]
[333812625,1722526240075,-500.0,0.00013972,2]
[333812626,1722526240085,-3014.99,0.00013972,2]
[333812627,1722526240095,-516.36542632,0.00013972,2]
[333812628,1722526240106,-500.0,0.00013972,2]
[333812629,1722526240115,-1097.58,0.00013972,2]
[333812630,1722526240126,-1026.8,0.00013972,2]
[333812631,1722526240136,-500.0,0.00013972,2]
[333812632,1722526240146,-500.0,0.00013972,2]
[333812633,1722526240156,-1001.77,0.00013972,2]
[333812635,1722526240165,-717.67,0.00013972,2]
[333812636,1722526240175,-1834.64,0.00013972,2]
[333812637,1722526240186,-500.0,0.00013972,2]
[333812639,1722526240196,-560.01,0.00013972,2]
[333812641,1722526240206,-602.07,0.00013972,2]
[333812643,1722526240216,-576.6,0.00013972,2]
[333812644,1722526240232,-225.40571439,0.00013972,2]
[333812646,1722526240243,-853.2,0.00013972,2]
[333812648,1722526240252,-618.56,0.00013972,2]
[333812650,1722526240263,-500.0,0.00013972,2]
[333812651,1722526240273,-515.84,0.00013972,2]
[333812653,1722526240283,-500.0,0.00013972,2]
[333812655,1722526240293,-500.0,0.00013972,2]
[333812657,1722526240303,-500.0,0.00013972,2]
[333812659,1722526240313,-500.0,0.00013972,2]
[333812660,1722526240322,-959.6,0.00013972,2]
[333812661,1722526240332,-593.62,0.00013972,2]
[333812662,1722526240342,-500.0,0.00013972,2]
[333812663,1722526240351,-813.83,0.00013972,2]
[333812664,1722526240362,-500.0,0.00013972,2]
[333812665,1722526240374,-527.79,0.00013972,2]
[333812666,1722526240384,-500.0,0.00013972,2]
[333812667,1722526240394,-745.56,0.00013972,2]
[333812668,1722526240404,-604.1,0.00013972,2]
[333812669,1722526240415,-500.0,0.00013972,2]
[333812670,1722526240425,-1389.84,0.00013972,2]
[333812671,1722526240435,-2092.69,0.00013972,2]
[333812672,1722526240445,-663.98,0.00013972,2]
[333812673,1722526240456,-500.0,0.00014246,2]
[333812674,1722526240466,-630.64,0.00014246,2]
[333812675,1722526240485,-500.0,0.00014246,2]
[333812676,1722526240495,-506.92187294,0.00014246,2]
[333812677,1722526240505,-500.0,0.00014246,2]
[333812678,1722526240518,-500.0,0.00014246,2]
[333812679,1722526240529,-500.0,0.00014246,2]
[333812680,1722526240541,-507.72,0.00014246,2]
[333812681,1722526240551,-500.0,0.00014246,2]
[333812682,1722526240560,-958.75,0.00014246,2]
[333812683,1722526240570,-2970.46,0.00014246,2]
[333812684,1722526240580,-500.0,0.00014246,2]
[333812685,1722526240590,-500.0,0.00014246,2]
[333812686,1722526240599,-601.25,0.00014246,2]
[333812687,1722526240609,-500.0,0.00014246,2]
[333812688,1722526240618,-537.12,0.00014246,2]
[333812689,1722526240627,-500.0,0.00014246,2]
[333812690,1722526240636,-3014.99,0.00014246,2]
[333812691,1722526240647,-1097.58,0.00014246,2]
[333812692,1722526240657,-1026.8,0.00014246,2]
[333812693,1722526240667,-188.86,0.00014246,2]
[333812694,1722526240677,-1001.77,0.00014246,2]
[333812695,1722526240687,-717.67,0.00014246,2]
[333812696,1722526240696,-1834.64,0.00014246,2]
[333812697,1722526240706,-560.01,0.00014246,2]
[333812698,1722526240717,-602.07,0.00014246,2]
[333812699,1722526240734,-576.6,0.00014246,2]
[333812700,1722526240743,-853.2,0.00014246,2]
[333812701,1722526240753,-618.56,0.00014246,2]
[333812702,1722526240763,-500.0,0.00014246,2]
[333812703,1722526240773,-515.84,0.00014246,2]
[333812704,1722526240783,-500.0,0.00014246,2]
[333812705,1722526240793,-500.0,0.00014246,2]
[333812706,1722526240803,-500.0,0.00014246,2]
[333812707,1722526240813,-500.0,0.00014246,2]
[333812708,1722526240824,-959.6,0.00014246,2]
[333812709,1722526240834,-593.62,0.00014246,2]
[333812710,1722526240844,-500.0,0.00014246,2]
[333812711,1722526240854,-813.83,0.00014246,2]
[333812712,1722526240864,-500.0,0.00014246,2]
[333812713,1722526240874,-527.79,0.00014246,2]
[333812714,1722526240975,-500.0,0.00014246,2]
[333812715,1722526240985,-745.56,0.00014246,2]
[333812716,1722526240995,-604.1,0.00014246,2]
[333812717,1722526241005,-500.0,0.00014246,2]
[333812718,1722526241015,-1389.84,0.00014246,2]
[333812719,1722526241025,-2092.69,0.00014246,2]
[333812720,1722526241035,-663.98,0.00014246,2]
[333812721,1722526241046,-167.808466,0.0001452,2]
[333812722,1722526241057,-500.0,0.0001452,2]
[333812723,1722526241067,-630.64,0.0001452,2]
[333812724,1722526241078,-500.0,0.0001452,2]
[333812725,1722526241088,-500.0,0.0001452,2]
[333812726,1722526241099,-500.0,0.0001452,2]
[333812727,1722526241109,-500.0,0.0001452,2]
[333812728,1722526241120,-507.72,0.0001452,2]
[333812729,1722526241131,-500.0,0.0001452,2]
[333812730,1722526241141,-958.75,0.0001452,2]
[333812731,1722526241151,-2970.46,0.0001452,2]
[333812732,1722526241162,-500.0,0.0001452,2]
[333812733,1722526241172,-500.0,0.0001452,2]
[333812734,1722526241182,-601.25,0.0001452,2]
[333812735,1722526241192,-500.0,0.0001452,2]
[333812736,1722526241203,-537.12,0.0001452,2]
[333812737,1722526241212,-500.0,0.0001452,2]
[333812738,1722526241227,-3014.99,0.0001452,2]
[333812739,1722526241236,-1097.58,0.0001452,2]
[333812740,1722526241246,-1026.8,0.0001452,2]
[333812741,1722526241256,-1001.77,0.0001452,2]
[333812742,1722526241266,-1834.64,0.0001452,2]
[333812743,1722526241275,-717.67,0.0001452,2]
[333812744,1722526241285,-560.01,0.0001452,2]
[333812745,1722526241295,-602.07,0.0001452,2]
[333812746,1722526241306,-576.6,0.0001452,2]
[333812747,1722526241319,-853.2,0.0001452,2]
[333812748,1722526241330,-618.56,0.0001452,2]
[333812749,1722526241339,-500.0,0.0001452,2]
[333812750,1722526241349,-515.84,0.0001452,2]
[333812751,1722526241361,-500.0,0.0001452,2]
[333812752,1722526241377,-500.0,0.0001452,2]
[333812753,1722526241391,-500.0,0.0001452,2]
[333812754,1722526241401,-500.0,0.0001452,2]
[333812755,1722526241412,-959.6,0.0001452,2]
[333812756,1722526241421,-593.62,0.0001452,2]
[333812757,1722526241431,-500.0,0.0001452,2]
[333812758,1722526241440,-813.83,0.0001452,2]
[333812759,1722526241450,-500.0,0.0001452,2]
[333812760,1722526241460,-527.79,0.0001452,2]
[333812761,1722526241474,-500.0,0.0001452,2]
[333812762,1722526241484,-745.56,0.0001452,2]
[333812763,1722526241494,-604.1,0.0001452,2]
[333812764,1722526241504,-500.0,0.0001452,2]
[333812765,1722526241514,-1389.84,0.0001452,2]
[333812766,1722526241525,-2092.69,0.0001452,2]
[333812767,1722526241535,-663.98,0.0001452,2]
[333812768,1722526241545,-4436.1409133,0.00014689,5]
[333812769,1722526241555,-473.887496,0.0001469,2]
[333812770,1722526241564,-349.346713,0.0001469,2]
[333812771,1722526241574,-349.346713,0.0001469,2]
[333812772,1722526241584,-324.22717,0.0001469,2]
[333812773,1722526241594,-324.22717,0.0001469,2]
[333812774,1722526241605,-73300.4694972,0.00014784,2]
[333812775,1722526241616,-508.40938175,0.00014794,2]
[333812776,1722526241626,-500.0,0.00014794,2]
[333812777,1722526241636,-500.0,0.00014794,2]
[333812778,1722526241647,-508.94574006,0.00014794,2]
[333812779,1722526241658,-518.48045039,0.00014794,2]
[333812780,1722526241668,-1053.29,0.00014794,2]
[333812781,1722526241679,-500.0,0.00014794,2]
[333812782,1722526241689,-500.0,0.00014794,2]
[333812783,1722526241699,-500.0,0.00014794,2]
[333812784,1722526241710,-500.0,0.00014794,2]
[333812785,1722526241723,-508.9425558,0.00014794,2]
[333812786,1722526241732,-500.0,0.00014794,2]
[333812787,1722526241743,-435.018428,0.00014794,2]
[333812791,1722526241762,-435.018428,0.00014794,2]
[333812792,1722526241775,-500.0,0.00014794,2]
[333812793,1722526241785,-500.0,0.00014794,2]
[333812796,1722526241795,-630.64,0.00014794,2]
[333812798,1722526241804,-500.0,0.00014794,2]
[333812801,1722526241815,-500.0,0.00014794,2]
[333812803,1722526241826,-500.0,0.00014794,2]
[333812804,1722526241836,-500.0,0.00014794,2]
[333812806,1722526241846,-500.0,0.00014794,2]
[333812807,1722526241856,-507.72,0.00014794,2]
[333812809,1722526241867,-958.75,0.00014794,2]
[333812811,1722526241878,-2970.46,0.00014794,2]
[333812812,1722526241888,-500.0,0.00014794,2]
[333812813,1722526241898,-500.0,0.00014794,2]
[333812814,1722526241909,-601.25,0.00014794,2]
[333812815,1722526241919,-500.0,0.00014794,2]
[333812816,1722526241930,-537.12,0.00014794,2]
[333812817,1722526241940,-500.0,0.00014794,2]
[333812818,1722526241950,-3014.99,0.00014794,2]
[333812819,1722526241960,-1097.58,0.00014794,2]
[333812820,1722526241971,-1026.8,0.00014794,2]
[333812821,1722526241982,-1001.77,0.00014794,2]
[333812822,1722526241992,-1834.64,0.00014794,2]
[333812823,1722526242002,-717.67,0.00014794,2]
[333812825,1722526242013,-560.01,0.00014794,2]
[333812827,1722526242025,-602.07,0.00014794,2]
[333812829,1722526242036,-576.6,0.00014794,2]
[333812831,1722526242046,-853.2,0.00014794,2]
[333812832,1722526242057,-618.56,0.00014794,2]
[333812833,1722526242066,-500.0,0.00014794,2]
[333812835,1722526242076,-515.84,0.00014794,2]
[333812836,1722526242087,-500.0,0.00014794,2]
[333812837,1722526242097,-500.0,0.00014794,2]
[333812838,1722526242107,-500.0,0.00014794,2]
[333812839,1722526242117,-500.0,0.00014794,2]
[333812841,1722526242127,-959.6,0.00014794,2]
[333812842,1722526242139,-593.62,0.00014794,2]
[333812843,1722526242150,-500.0,0.00014794,2]
[333812844,1722526242161,-813.83,0.00014794,2]
[333812846,1722526242172,-500.0,0.00014794,2]
[333812847,1722526242182,-527.79,0.00014794,2]
[333812848,1722526242192,-500.0,0.00014794,2]
[333812849,1722526242202,-745.56,0.00014794,2]
[333812850,1722526242214,-604.1,0.00014794,2]
[333812851,1722526242226,-500.0,0.00014794,2]
[333812852,1722526242235,-1389.84,0.00014794,2]
[333812853,1722526242245,-2092.69,0.00014794,2]
[333812854,1722526242255,-663.98,0.00014794,2]
[333812855,1722526242265,-185.125738,0.00014842,2]
[333812856,1722526242276,-176.183918,0.00014842,2]
[333812857,1722526242287,-166.924871,0.00014902,2]
[333812858,1722526242298,-362.2532737,0.00014957,2]
[333812859,1722526242308,-194.52699436,0.00014999,2]
[333812860,1722526242318,-1000.0,0.00015,15]
[333812861,1722526242328,-2191.76200747,0.00015,2]
[333812862,1722526242338,-2847.40036017,0.00015,2]
[333812863,1722526242348,-4858.84679641,0.00015,7]
[333812864,1722526242359,-5291.74691932,0.00015042,2]
[333812865,1722526242372,-146600.938994,0.00015058,2]
[333812866,1722526242383,-668.65368038,0.00015067,2]
[333812867,1722526242393,-200.0,0.00015067,2]
[333812868,1722526242402,-200.0,0.00015067,2]
[333812869,1722526242415,-151.0,0.00015068,2]
[333812870,1722526242425,-500.0,0.00015068,2]
[333812872,1722526242435,-500.0,0.00015068,2]
[333812874,1722526242445,-646.69,0.00015068,2]
[333812875,1722526242455,-500.0,0.00015068,2]
[333812877,1722526242466,-500.0,0.00015068,2]
[333812879,1722526242481,-500.0,0.00015068,2]
[333812881,1722526242493,-500.0,0.00015068,2]
[333812883,1722526242503,-500.0,0.00015068,2]
[333812884,1722526242513,-500.0,0.00015068,2]
[333812885,1722526242522,-500.0,0.00015068,2]
[333812886,1722526242533,-555.92,0.00015068,2]
[333812887,1722526242543,-500.0,0.00015068,2]
[333812888,1722526242554,-394.9759661,0.00015068,2]
[333812889,1722526242565,-576.59,0.00015068,2]
[333812890,1722526242575,-500.0,0.00015068,2]
[333812891,1722526242586,-522.23,0.00015068,2]
[333812892,1722526242596,-500.0,0.00015068,2]
[333812893,1722526242608,-541.8,0.00015068,2]
[333812894,1722526242619,-923.56,0.00015068,2]
[333812895,1722526242629,-801.84,0.00015068,2]
[333812896,1722526242639,-500.0,0.00015068,2]
[333812897,1722526242650,-500.0,0.00015068,2]
[333812898,1722526242660,-500.0,0.00015068,2]
[333812899,1722526242671,-500.0,0.00015068,2]
[333812900,1722526242682,-505.71006865,0.00015068,2]
[333812901,1722526242692,-500.0,0.00015068,2]
[333812902,1722526242705,-151.0,0.00015068,2]
[333812903,1722526242715,-151.0,0.00015068,2]
[333812904,1722526242734,-500.0,0.00015068,2]
[333812905,1722526242745,-151.0,0.00015068,2]
[333812906,1722526242755,-500.0,0.00015068,2]
[333812907,1722526242765,-151.0,0.00015068,2]
[333812908,1722526242776,-289.777215,0.00015068,2]
[333812909,1722526242786,-716.89,0.00015068,2]
[333812910,1722526242796,-738.18,0.00015068,2]
[333812911,1722526242805,-500.0,0.00015068,2]
[333812912,1722526242815,-534.35,0.00015068,2]
[333812913,1722526242825,-500.0,0.00015068,2]
[333812914,1722526242835,-151.0,0.00015068,2]
[333812915,1722526242845,-500.0,0.00015068,2]
[333812916,1722526242854,-705.26,0.00015068,2]
[333812917,1722526242864,-151.0,0.00015068,2]
[333812918,1722526242874,-1051.75,0.00015068,2]
[333812919,1722526242884,-500.0,0.00015068,2]
[333812920,1722526242894,-500.0,0.00015068,2]
[333812921,1722526242904,-500.0,0.00015068,2]
[333812922,1722526242914,-516.15582011,0.00015068,2]
[333812923,1722526242925,-500.0,0.00015068,2]
[333812924,1722526242935,-1053.29,0.00015068,2]
[333812925,1722526242945,-500.0,0.00015068,2]
[333812926,1722526242956,-500.0,0.00015068,2]
[333812927,1722526242967,-500.0,0.00015068,2]
[333812928,1722526242986,-151.0,0.00015068,2]
[333812929,1722526242996,-500.0,0.00015068,2]
[333812930,1722526243005,-151.0,0.00015068,2]
[333812932,1722526243015,-167.808466,0.00015068,2]
[333812934,1722526243025,-167.808466,0.00015068,2]
[333812935,1722526243035,-500.0,0.00015068,2]
[333812936,1722526243045,-630.64,0.00015068,2]
[333812937,1722526243054,-500.0,0.00015068,2]
[333812939,1722526243064,-500.0,0.00015068,2]
[333812940,1722526243074,-500.0,0.00015068,2]
[333812942,1722526243084,-500.0,0.00015068,2]
[333812944,1722526243094,-500.0,0.00015068,2]
[333812946,1722526243104,-507.72,0.00015068,2]
[333812948,1722526243115,-958.75,0.00015068,2]
[333812951,1722526243125,-2970.46,0.00015068,2]
[333812952,1722526243134,-500.0,0.00015068,2]
[333812955,1722526243145,-500.0,0.00015068,2]
[333812957,1722526243155,-601.25,0.00015068,2]
[333812959,1722526243165,-500.0,0.00015068,2]
[333812961,1722526243175,-537.12,0.00015068,2]
[333812965,1722526243185,-500.0,0.00015068,2]
[333812983,1722526243195,-3014.99,0.00015068,2]
[333812985,1722526243323,-1097.58,0.00015068,2]
[333812988,1722526243333,-1026.8,0.00015068,2]
[333812989,1722526243343,-1001.77,0.00015068,2]
[333812991,1722526243352,-1834.64,0.00015068,2]
[333812994,1722526243363,-717.67,0.00015068,2]
[333812996,1722526243373,-560.01,0.00015068,2]
[333812997,1722526243385,-576.6,0.00015068,2]
[333812999,1722526243395,-853.2,0.00015068,2]
[333813002,1722526243405,-618.56,0.00015068,2]
[333813003,1722526243414,-500.0,0.00015068,2]
[333813005,1722526243425,-515.84,0.00015068,2]
[333813007,1722526243435,-500.0,0.00015068,2]
[333813009,1722526243445,-602.07,0.00015068,2]
[333813011,1722526243454,-500.0,0.00015068,2]
[333813013,1722526243466,-500.0,0.00015068,2]
[333813015,1722526243485,-500.0,0.00015068,2]
[333813017,1722526243494,-959.6,0.00015068,2]
[333813019,1722526243504,-593.62,0.00015068,2]
[333813021,1722526243515,-500.0,0.00015068,2]
[333813023,1722526243526,-813.83,0.00015068,2]
[333813024,1722526243536,-500.0,0.00015068,2]
[333813026,1722526243545,-527.79,0.00015068,2]
[333813028,1722526243556,-500.0,0.00015068,2]
[333813030,1722526243565,-745.56,0.00015068,2]
[333813032,1722526243576,-604.1,0.00015068,2]
[333813034,1722526243588,-500.0,0.00015068,2]
[333813036,1722526243599,-1389.84,0.00015068,2]
[333813038,1722526243611,-2092.69,0.00015068,2]
[333813040,1722526243622,-663.98,0.00015068,2]
[333813042,1722526243633,-158.695744,0.00015082,2]
[333813044,1722526243643,-166.924871,0.00015082,2]
[333813046,1722526243652,-208.641683,0.00015082,2]
[333813048,1722526243662,-186.515185,0.00015082,2]
[333813050,1722526243672,-150.943404,0.00015082,2]
[333813052,1722526243681,-193.896966,0.00015082,2]
[333813054,1722526243691,-179.26856,0.00015082,2]
[333813056,1722526243700,-185.125738,0.00015082,2]
[333813058,1722526243710,-176.183918,0.00015082,2]
[333813060,1722526243725,-196.511455,0.00015082,2]
[333813062,1722526243735,-166.132754,0.00015082,2]
[333813064,1722526243744,-557.0,0.00015244,2]
[333813066,1722526243755,-73300.4694972,0.00015332,2]
[333813068,1722526243765,-515.74558089,0.00015342,2]
[333813070,1722526243774,-646.69,0.00015342,2]
[333813072,1722526243784,-500.0,0.00015342,2]
[333813074,1722526243793,-508.49152173,0.00015342,2]
[333813076,1722526243802,-500.0,0.00015342,2]
[333813078,1722526243812,-205.57268217,0.00015342,2]
[333813080,1722526243822,-500.0,0.00015342,2]
[333813082,1722526243832,-500.0,0.00015342,2]
[333813084,1722526243841,-151.483895,0.00015342,2]
[333813086,1722526243851,-500.0,0.00015342,2]
[333813088,1722526243860,-555.92,0.00015342,2]
[333813090,1722526243870,-500.0,0.00015342,2]
[333813092,1722526243880,-151.0,0.00015342,2]
[333813094,1722526243890,-186.708549,0.00015342,2]
[333813096,1722526243899,-576.59,0.00015342,2]
[333813098,1722526243909,-500.0,0.00015342,2]
[333813100,1722526243918,-186.708549,0.00015342,2]
[333813102,1722526243928,-522.23,0.00015342,2]
[333813104,1722526243938,-500.0,0.00015342,2]
[333813106,1722526243947,-541.8,0.00015342,2]
[333813108,1722526243957,-923.56,0.00015342,2]
[333813110,1722526243967,-801.84,0.00015342,2]
[333813112,1722526243981,-500.0,0.00015342,2]
[333813114,1722526243991,-500.0,0.00015342,2]
[333813116,1722526244000,-500.0,0.00015342,2]
[333813118,1722526244009,-500.0,0.00015342,2]
[333813120,1722526244018,-500.0,0.00015342,2]
[333813122,1722526244028,-500.0,0.00015342,2]
[333813124,1722526244037,-500.0,0.00015342,2]
[333813125,1722526244046,-716.89,0.00015342,2]
[333813127,1722526244056,-738.18,0.00015342,2]
[333813129,1722526244066,-500.0,0.00015342,2]
[333813131,1722526244076,-534.35,0.00015342,2]
[333813133,1722526244086,-500.0,0.00015342,2]
[333813135,1722526244095,-500.0,0.00015342,2]
[333813137,1722526244106,-705.26,0.00015342,2]
[333813139,1722526244115,-1051.75,0.00015342,2]
[333813141,1722526244125,-500.0,0.00015342,2]
[333813143,1722526244134,-500.0,0.00015342,2]
[333813145,1722526244144,-500.0,0.00015342,2]
[333813147,1722526244153,-500.0,0.00015342,2]
[333813149,1722526244164,-1053.29,0.00015342,2]
[333813151,1722526244174,-500.0,0.00015342,2]
[333813153,1722526244183,-500.0,0.00015342,2]
[333813155,1722526244192,-500.0,0.00015342,2]
[333813157,1722526244202,-236.88596401,0.00015342,2]
[333813159,1722526244212,-349.346713,0.00015342,2]
[333813161,1722526244225,-500.0,0.00015342,2]
[333813163,1722526244235,-349.346713,0.00015342,2]
[333813165,1722526244244,-630.64,0.00015342,2]
[333813167,1722526244254,-500.0,0.00015342,2]
[333813169,1722526244264,-291.5204801,0.00015342,2]
[333813171,1722526244275,-500.0,0.00015342,2]
[333813174,1722526244286,-500.0,0.00015342,2]
[333813176,1722526244300,-643.09,0.00015342,2]
[333813178,1722526244314,-324.22717,0.00015342,2]
[333813181,1722526244330,-507.72,0.00015342,2]
[333813183,1722526244342,-324.22717,0.00015342,2]
[333813185,1722526244354,-958.75,0.00015342,2]
[333813188,1722526244372,-2970.46,0.00015342,2]
[333813190,1722526244385,-500.0,0.00015342,2]
[333813193,1722526244398,-500.0,0.00015342,2]
[333813195,1722526244414,-601.25,0.00015342,2]
[333813198,1722526244427,-500.0,0.00015342,2]
[333813200,1722526244441,-537.12,0.00015342,2]
[333813202,1722526244455,-500.0,0.00015342,2]
[333813205,1722526244474,-3014.99,0.00015342,2]
[333813207,1722526244488,-1097.58,0.00015342,2]
[333813209,1722526244500,-1026.8,0.00015342,2]
[333813212,1722526244512,-1001.77,0.00015342,2]
[333813214,1722526244524,-1834.64,0.00015342,2]
[333813217,1722526244538,-717.67,0.00015342,2]
[333813219,1722526244551,-560.01,0.00015342,2]
[333813221,1722526244564,-576.6,0.00015342,2]
[333813223,1722526244575,-853.2,0.00015342,2]
[333813225,1722526244586,-618.56,0.00015342,2]
[333813228,1722526244599,-500.0,0.00015342,2]
[333813230,1722526244610,-515.84,0.00015342,2]
[333813232,1722526244622,-500.0,0.00015342,2]
[333813235,1722526244636,-602.07,0.00015342,2]
[333813237,1722526244650,-500.0,0.00015342,2]
[333813239,1722526244661,-355.57053025,0.00015342,2]
[333813241,1722526244675,-500.0,0.00015342,2]
[333813244,1722526244689,-959.6,0.00015342,2]
[333813246,1722526244703,-593.62,0.00015342,2]
[333813248,1722526244715,-418.73667803,0.00015342,2]
[333813250,1722526244729,-813.83,0.00015342,2]
[333813252,1722526244739,-500.0,0.00015342,2]
[333813254,1722526244749,-527.79,0.00015342,2]
[333813256,1722526244761,-500.0,0.00015342,2]
[333813259,1722526244773,-745.56,0.00015342,2]
[333813261,1722526244786,-604.1,0.00015342,2]
[333813263,1722526244799,-500.0,0.00015342,2]
[333813265,1722526244810,-1389.84,0.00015342,2]
[333813268,1722526244825,-2092.69,0.00015342,2]
[333813270,1722526244837,-663.98,0.00015342,2]
[333813273,1722526244849,-170.1171544,0.00015595,2]
[333813275,1722526244862,-646.69,0.00015616,2]
[333813277,1722526244872,-500.0,0.00015616,2]
[333813279,1722526244883,-151.0,0.00015616,2]
[333813281,1722526244894,-151.0,0.00015616,2]
[333813283,1722526244905,-155.126107,0.00015616,2]
[333813286,1722526244916,-500.0,0.00015616,2]
[333813288,1722526244928,-500.0,0.00015616,2]
[333813290,1722526244939,-500.0,0.00015616,2]
[333813292,1722526244951,-500.0,0.00015616,2]
[333813294,1722526244962,-555.92,0.00015616,2]
[333813297,1722526244978,-500.0,0.00015616,2]
[333813299,1722526244990,-576.59,0.00015616,2]
[333813301,1722526245002,-165.80035579,0.00015616,2]
[333813303,1722526245013,-522.23,0.00015616,2]
[333813305,1722526245025,-500.0,0.00015616,2]
[333813308,1722526245037,-541.8,0.00015616,2]
[333813310,1722526245048,-923.56,0.00015616,2]
[333813312,1722526245060,-151.0,0.00015616,2]
[333813314,1722526245071,-801.84,0.00015616,2]
[333813317,1722526245082,-340.07051285,0.00015616,2]
[333813319,1722526245093,-500.0,0.00015616,2]
[333813321,1722526245105,-245.44,0.00015616,2]
[333813323,1722526245116,-500.0,0.00015616,2]
[333813325,1722526245127,-500.0,0.00015616,2]
[333813327,1722526245138,-500.0,0.00015616,2]
[333813329,1722526245150,-500.0,0.00015616,2]
[333813332,1722526245161,-716.89,0.00015616,2]
[333813334,1722526245172,-738.18,0.00015616,2]
[333813336,1722526245184,-500.0,0.00015616,2]
[333813338,1722526245196,-534.35,0.00015616,2]
[333813340,1722526245208,-500.0,0.00015616,2]
[333813343,1722526245219,-500.0,0.00015616,2]
[333813345,1722526245234,-705.26,0.00015616,2]
[333813347,1722526245245,-1051.75,0.00015616,2]
[333813349,1722526245257,-500.0,0.00015616,2]
[333813351,1722526245268,-500.0,0.00015616,2]
[333813353,1722526245279,-500.0,0.00015616,2]
[333813355,1722526245291,-500.0,0.00015616,2]
[333813356,1722526245303,-1053.29,0.00015616,2]
[333813358,1722526245315,-151.0,0.00015616,2]
[333813360,1722526245326,-500.0,0.00015616,2]
[333813362,1722526245337,-500.0,0.00015616,2]
[333813364,1722526245348,-500.0,0.00015616,2]
[333813366,1722526245361,-435.018428,0.00015616,2]